[Event "Early-Titled-Tuesday-Blitz-November-28-2023"]
[Site "Chess.com"]
[Date "2023.11.28"]
[Round "7"]
[White "Nitzan_Steinberg"]
[Black "Agibileg"]
[Result "1-0"]
[WhiteElo "2896"]
[BlackElo "2658"]
[TimeControl "180+1"]
[EndTime "9:24:47 PST"]
[Termination "Nitzan_Steinberg won by checkmate"]

1. Nf3 {[%clk 0:02:53.9]} 1... Nf6 {[%clk 0:02:59.6]} 2. g3 {[%clk 0:02:54]}
2... g6 {[%clk 0:02:59.6]} 3. Bg2 {[%clk 0:02:54.3]} 3... Bg7 {[%clk 0:02:51.8]}
4. O-O {[%clk 0:02:51.4]} 4... O-O {[%clk 0:02:51.9]} 5. d4 {[%clk 0:02:50.8]}
5... a5 {[%clk 0:02:28]} 6. c4 {[%clk 0:02:50.3]} 6... a4 {[%clk 0:02:27.2]} 7.
Nc3 {[%clk 0:02:50.4]} 7... a3 {[%clk 0:02:26.7]} 8. bxa3 {[%clk 0:02:50.6]}
8... Nc6 {[%clk 0:02:19.3]} 9. e3 {[%clk 0:02:46]} 9... Na5 {[%clk 0:02:16.8]}
10. Nd2 {[%clk 0:02:40.4]} 10... h5 {[%clk 0:01:55.8]} 11. h3 {[%clk 0:02:39]}
11... h4 {[%clk 0:01:54.9]} 12. g4 {[%clk 0:02:39]} 12... d6 {[%clk 0:01:46.9]}
13. Rb1 {[%clk 0:02:38.9]} 13... e5 {[%clk 0:01:41.7]} 14. a4 {[%clk 0:02:35.1]}
14... exd4 {[%clk 0:01:38.9]} 15. exd4 {[%clk 0:02:35.3]} 15... Nxg4 {[%clk
0:01:32.8]} 16. hxg4 {[%clk 0:02:33.7]} 16... Bxd4 {[%clk 0:01:33.2]} 17. Nde4
{[%clk 0:02:29.3]} 17... Be5 {[%clk 0:01:22.3]} 18. Nd5 {[%clk 0:02:22.3]} 18...
h3 {[%clk 0:01:19.3]} 19. Bg5 {[%clk 0:02:10]} 19... f6 {[%clk 0:01:10.5]} 20.
Nexf6+ {[%clk 0:02:08.6]} 20... Rxf6 {[%clk 0:01:02.4]} 21. Re1 {[%clk
0:01:21.6]} 21... Rxf2 {[%clk 0:00:37.3]} 22. Bxd8 {[%clk 0:00:55.4]} 22...
Rxg2+ {[%clk 0:00:36.2]} 23. Kf1 {[%clk 0:00:56]} 23... Bxg4 {[%clk 0:00:36.3]}
24. Qd3 {[%clk 0:00:52.2]} 24... Rxd8 {[%clk 0:00:11.8]} 25. Qxg6+ {[%clk
0:00:43]} 25... Kf8 {[%clk 0:00:12.1]} 26. Qh6+ {[%clk 0:00:34.4]} 26... Ke8
{[%clk 0:00:10.7]} 27. Nf6+ {[%clk 0:00:21.9]} 27... Ke7 {[%clk 0:00:06.8]} 28.
Qg7+ {[%clk 0:00:21.9]} 28... Ke6 {[%clk 0:00:05.3]} 29. Nxg4 {[%clk 0:00:22.2]}
29... Rd7 {[%clk 0:00:03.1]} 30. Qf6# {[%clk 0:00:19.5]} 1-0

[Event "Early-Titled-Tuesday-Blitz-November-28-2023"]
[Site "Chess.com"]
[Date "2023.11.28"]
[Round "7"]
[White "Ramla2020"]
[Black "GMthekingindian"]
[Result "1-0"]
[WhiteElo "2543"]
[BlackElo "2312"]
[TimeControl "180+1"]
[EndTime "9:24:49 PST"]
[Termination "Ramla2020 won by resignation"]

1. c4 {[%clk 0:03:00.4]} 1... e5 {[%clk 0:02:59.3]} 2. g3 {[%clk 0:03:00]} 2...
Nc6 {[%clk 0:02:59.1]} 3. Bg2 {[%clk 0:03:00.1]} 3... Nf6 {[%clk 0:02:59.8]} 4.
Nc3 {[%clk 0:02:59.8]} 4... g6 {[%clk 0:03:00.3]} 5. e3 {[%clk 0:02:58.9]} 5...
Bg7 {[%clk 0:03:00.4]} 6. d4 {[%clk 0:02:59]} 6... exd4 {[%clk 0:02:59.2]} 7.
exd4 {[%clk 0:02:59.9]} 7... O-O {[%clk 0:02:59.1]} 8. Nge2 {[%clk 0:02:59.8]}
8... Re8 {[%clk 0:02:53]} 9. O-O {[%clk 0:02:58.5]} 9... h6 {[%clk 0:02:51.3]}
10. h3 {[%clk 0:02:56.5]} 10... d6 {[%clk 0:02:42.4]} 11. Be3 {[%clk 0:02:56.1]}
11... Bf5 {[%clk 0:02:39]} 12. g4 {[%clk 0:02:53.2]} 12... Be4 {[%clk
0:02:32.4]} 13. f3 {[%clk 0:02:35.3]} 13... Bf5 {[%clk 0:02:25.8]} 14. Qd2
{[%clk 0:02:28.8]} 14... Bd7 {[%clk 0:02:14.8]} 15. Bxh6 {[%clk 0:02:27]} 15...
Bh8 {[%clk 0:02:12.4]} 16. Bg5 {[%clk 0:02:26.7]} 16... Qc8 {[%clk 0:01:58.3]}
17. Nf4 {[%clk 0:02:26.2]} 17... Nh7 {[%clk 0:01:53.1]} 18. Nfe2 {[%clk
0:02:22.9]} 18... Nxg5 {[%clk 0:01:46.4]} 19. Qxg5 {[%clk 0:02:22.6]} 19... Nxd4
{[%clk 0:01:46.5]} 20. Nf4 {[%clk 0:02:14.3]} 20... Qd8 {[%clk 0:01:39]} 21.
Qxd8 {[%clk 0:02:09.5]} 21... Raxd8 {[%clk 0:01:39.9]} 22. Rad1 {[%clk
0:02:08.8]} 22... Be6 {[%clk 0:01:07.2]} 23. Nxe6 {[%clk 0:02:02.7]} 23... Rxe6
{[%clk 0:01:06.7]} 24. Rd2 {[%clk 0:02:01.4]} 24... Rde8 {[%clk 0:01:02.4]} 25.
Kf2 {[%clk 0:01:55]} 25... c6 {[%clk 0:00:36.2]} 26. Rfd1 {[%clk 0:01:52.7]}
26... c5 {[%clk 0:00:29.9]} 27. f4 {[%clk 0:01:48.9]} 27... b6 {[%clk 0:00:29]}
28. Bd5 {[%clk 0:01:40.8]} 28... Re3 {[%clk 0:00:26]} 29. Bg2 {[%clk 0:01:36.7]}
29... Bf6 {[%clk 0:00:20.3]} 30. g5 {[%clk 0:01:36.1]} 30... Bg7 {[%clk
0:00:20.4]} 31. Nd5 {[%clk 0:01:36.1]} 31... Re2+ {[%clk 0:00:18.7]} 32. Kg1
{[%clk 0:01:34.2]} 32... Rxd2 {[%clk 0:00:18]} 33. Rxd2 {[%clk 0:01:35.1]} 33...
Re2 {[%clk 0:00:14.3]} 34. Rxe2 {[%clk 0:01:31.1]} 34... Nxe2+ {[%clk
0:00:15.2]} 35. Kf2 {[%clk 0:01:30.8]} 35... Nc1 {[%clk 0:00:13.8]} 36. b3
{[%clk 0:01:29.4]} 36... Nxa2 {[%clk 0:00:13.8]} 37. Ne7+ {[%clk 0:01:27.5]}
37... Kf8 {[%clk 0:00:13.4]} 38. Nc6 {[%clk 0:01:27.3]} 38... Nc1 {[%clk
0:00:13.8]} 39. Nxa7 {[%clk 0:01:25.4]} 39... Nxb3 {[%clk 0:00:14.2]} 40. Nc8
{[%clk 0:01:26.3]} 40... Nd2 {[%clk 0:00:11.3]} 41. Bd5 {[%clk 0:01:24.9]} 41...
f6 {[%clk 0:00:08.1]} 42. Nxd6 {[%clk 0:01:23.2]} 42... fxg5 {[%clk 0:00:08]}
43. fxg5 {[%clk 0:01:24.1]} 43... Nb1 {[%clk 0:00:08.5]} 44. Nc8 {[%clk
0:01:21.8]} 44... Nc3 {[%clk 0:00:08.8]} 45. Nxb6 {[%clk 0:01:21.7]} 45... Nxd5
{[%clk 0:00:08.9]} 46. Nxd5 {[%clk 0:01:21.4]} 46... Kf7 {[%clk 0:00:09.5]} 47.
Kf3 {[%clk 0:01:21.7]} 47... Ke6 {[%clk 0:00:10.1]} 48. Ke4 {[%clk 0:01:21.9]}
48... Bf8 {[%clk 0:00:09.4]} 49. Nf4+ {[%clk 0:01:21.8]} 49... Kf7 {[%clk
0:00:09.4]} 50. Kd5 {[%clk 0:01:21.5]} 50... Be7 {[%clk 0:00:09.3]} 51. Ne6
{[%clk 0:01:20.9]} 51... Ke8 {[%clk 0:00:07.4]} 52. h4 {[%clk 0:01:21]} 52...
Kd7 {[%clk 0:00:07.8]} 53. Nxc5+ {[%clk 0:01:21.1]} 53... Kc7 {[%clk 0:00:08.4]}
54. Ne6+ {[%clk 0:01:21.4]} 54... Kd7 {[%clk 0:00:09]} 55. Nf4 {[%clk
0:01:21.6]} 55... Bd6 {[%clk 0:00:06.8]} 56. Nxg6 {[%clk 0:01:21.4]} 56... Bg3
{[%clk 0:00:07.7]} 57. h5 {[%clk 0:01:20.7]} 57... Ke8 {[%clk 0:00:08]} 58. Ne5
{[%clk 0:01:19.6]} 58... Kf8 {[%clk 0:00:07.9]} 59. Ke6 {[%clk 0:01:18.6]} 1-0

[Event "Early-Titled-Tuesday-Blitz-November-28-2023"]
[Site "Chess.com"]
[Date "2023.11.28"]
[Round "7"]
[White "whitemirrorninja"]
[Black "Ziyamammadov"]
[Result "1-0"]
[WhiteElo "2509"]
[BlackElo "1903"]
[TimeControl "180+1"]
[EndTime "9:24:50 PST"]
[Termination "whitemirrorninja won on time"]

1. c4 {[%clk 0:03:00.9]} 1... Nf6 {[%clk 0:02:58.7]} 2. Nc3 {[%clk 0:02:56.8]}
2... d6 {[%clk 0:02:58.3]} 3. g3 {[%clk 0:02:50.3]} 3... g6 {[%clk 0:02:58.9]}
4. Bg2 {[%clk 0:02:50.3]} 4... Bg7 {[%clk 0:02:59.4]} 5. d4 {[%clk 0:02:50.6]}
5... Nbd7 {[%clk 0:03:00]} 6. Nf3 {[%clk 0:02:51]} 6... O-O {[%clk 0:03:00.1]}
7. O-O {[%clk 0:02:51.1]} 7... c5 {[%clk 0:02:59.6]} 8. b3 {[%clk 0:02:43.4]}
8... cxd4 {[%clk 0:02:57.7]} 9. Nxd4 {[%clk 0:02:44.3]} 9... Nc5 {[%clk
0:02:54.9]} 10. Bb2 {[%clk 0:02:44.3]} 10... a6 {[%clk 0:02:50.2]} 11. Rc1
{[%clk 0:02:43.2]} 11... Qc7 {[%clk 0:02:30.3]} 12. b4 {[%clk 0:02:36.8]} 12...
Ne6 {[%clk 0:02:27.5]} 13. Nd5 {[%clk 0:02:36.9]} 13... Qd8 {[%clk 0:02:22.2]}
14. Nxe6 {[%clk 0:02:31.8]} 14... Bxe6 {[%clk 0:02:20.5]} 15. Nxf6+ {[%clk
0:02:31.6]} 15... Bxf6 {[%clk 0:02:16.8]} 16. Bxf6 {[%clk 0:02:30.3]} 16... exf6
{[%clk 0:02:17.3]} 17. a4 {[%clk 0:02:08.4]} 17... Qb6 {[%clk 0:01:46.1]} 18.
Qd2 {[%clk 0:01:59.4]} 18... Rac8 {[%clk 0:01:42.6]} 19. a5 {[%clk 0:01:58.7]}
19... Qc7 {[%clk 0:01:18.1]} 20. Rfd1 {[%clk 0:01:58.8]} 20... Rfd8 {[%clk
0:01:10.3]} 21. Qd4 {[%clk 0:01:59.1]} 21... Qe7 {[%clk 0:01:00.3]} 22. e3
{[%clk 0:01:50.7]} 22... f5 {[%clk 0:00:49.3]} 23. h4 {[%clk 0:01:45.3]} 23...
Rc7 {[%clk 0:00:34.6]} 24. h5 {[%clk 0:01:35.4]} 24... gxh5 {[%clk 0:00:27.3]}
25. Bf3 {[%clk 0:01:28.1]} 25... Rdc8 {[%clk 0:00:22.5]} 26. Qxd6 {[%clk
0:01:19.2]} 26... Qxd6 {[%clk 0:00:19.2]} 27. Rxd6 {[%clk 0:01:20.1]} 27... Rxc4
{[%clk 0:00:19.7]} 28. Rxc4 {[%clk 0:01:19.6]} 28... Rxc4 {[%clk 0:00:18.6]} 29.
Rb6 {[%clk 0:01:18.6]} 29... Rc1+ {[%clk 0:00:16]} 30. Kg2 {[%clk 0:01:16.6]}
30... Bc4 {[%clk 0:00:10.1]} 31. Bxh5 {[%clk 0:01:09.6]} 31... Bb5 {[%clk
0:00:06.1]} 32. Bf3 {[%clk 0:01:04.4]} 32... Bc6 {[%clk 0:00:04.1]} 33. Bxc6
{[%clk 0:01:03.1]} 33... Rxc6 {[%clk 0:00:04.6]} 34. Rxb7 {[%clk 0:00:55.9]}
34... Kf8 {[%clk 0:00:04.5]} 35. Kf3 {[%clk 0:00:50.8]} 35... Ke8 {[%clk
0:00:03.7]} 36. Kf4 {[%clk 0:00:51.5]} 36... f6 {[%clk 0:00:01.7]} 37. Kxf5
{[%clk 0:00:48.6]} 37... Rc2 {[%clk 0:00:02.4]} 38. f4 {[%clk 0:00:46.8]} 38...
Rc6 {[%clk 0:00:02.1]} 39. e4 {[%clk 0:00:44.5]} 39... Kd8 {[%clk 0:00:01.3]}
40. Rb6 {[%clk 0:00:42.9]} 40... Rc4 {[%clk 0:00:01.2]} 41. g4 {[%clk 0:00:37]}
1-0

[Event "Early-Titled-Tuesday-Blitz-November-28-2023"]
[Site "Chess.com"]
[Date "2023.11.28"]
[Round "7"]
[White "Akylbek2021"]
[Black "Kostukov_Alex"]
[Result "0-1"]
[WhiteElo "2226"]
[BlackElo "2409"]
[TimeControl "180+1"]
[EndTime "9:24:51 PST"]
[Termination "Kostukov_Alex won on time"]

1. c4 {[%clk 0:03:00.9]} 1... c5 {[%clk 0:02:58.5]} 2. Nf3 {[%clk 0:03:00.5]}
2... Nf6 {[%clk 0:02:59.1]} 3. Nc3 {[%clk 0:03:00.6]} 3... g6 {[%clk 0:02:59.4]}
4. g3 {[%clk 0:03:01.2]} 4... Bg7 {[%clk 0:02:59.2]} 5. Bg2 {[%clk 0:03:01.2]}
5... O-O {[%clk 0:02:59.8]} 6. d4 {[%clk 0:03:01.9]} 6... cxd4 {[%clk
0:02:59.6]} 7. Nxd4 {[%clk 0:03:02.8]} 7... Nc6 {[%clk 0:03:00.1]} 8. Nxc6
{[%clk 0:03:01.1]} 8... dxc6 {[%clk 0:02:52.8]} 9. O-O {[%clk 0:02:58.5]} 9...
Be6 {[%clk 0:02:48.2]} 10. b3 {[%clk 0:02:43.2]} 10... Qa5 {[%clk 0:02:45.2]}
11. Bb2 {[%clk 0:02:41.2]} 11... Qh5 {[%clk 0:02:44.3]} 12. Ne4 {[%clk
0:02:12.7]} 12... Ng4 {[%clk 0:02:24.5]} 13. h3 {[%clk 0:01:43.5]} 13... Bxb2
{[%clk 0:02:23.3]} 14. hxg4 {[%clk 0:01:41.5]} 14... Bxg4 {[%clk 0:02:18.6]} 15.
f3 {[%clk 0:01:37.7]} 15... Be6 {[%clk 0:02:10.2]} 16. Rb1 {[%clk 0:01:34.8]}
16... Rad8 {[%clk 0:02:04.8]} 17. Qe1 {[%clk 0:01:29.9]} 17... Bd4+ {[%clk
0:01:44.4]} 18. e3 {[%clk 0:01:30.3]} 18... Bg7 {[%clk 0:01:40.8]} 19. g4 {[%clk
0:01:05.9]} 19... Qe5 {[%clk 0:01:38.7]} 20. f4 {[%clk 0:01:05.9]} 20... Qc7
{[%clk 0:01:36.9]} 21. f5 {[%clk 0:01:03]} 21... Bc8 {[%clk 0:01:34.8]} 22. Qh4
{[%clk 0:00:53.8]} 22... Qe5 {[%clk 0:01:23.3]} 23. Rbe1 {[%clk 0:00:37.5]}
23... gxf5 {[%clk 0:01:21.1]} 24. gxf5 {[%clk 0:00:24]} 24... Bxf5 {[%clk
0:01:19.5]} 25. Ng5 {[%clk 0:00:21.8]} 25... Bg6 {[%clk 0:01:15.1]} 26. Rf4
{[%clk 0:00:09.1]} 26... Bf6 {[%clk 0:01:10.7]} 27. Rg4 {[%clk 0:00:06.2]} 27...
h5 {[%clk 0:01:01.8]} 28. Rg3 {[%clk 0:00:04.6]} 28... Rd2 {[%clk 0:00:56.1]}
29. Rf1 {[%clk 0:00:03.6]} 29... Bxg5 {[%clk 0:00:45.9]} 30. Rxg5 {[%clk
0:00:03.4]} 30... Qxe3+ {[%clk 0:00:46]} 31. Kh1 {[%clk 0:00:03.5]} 31... Kg7
{[%clk 0:00:37.2]} 32. Qxh5 {[%clk 0:00:03.1]} 32... Rh8 {[%clk 0:00:36.3]} 33.
Rxg6+ {[%clk 0:00:02.4]} 33... fxg6 {[%clk 0:00:36.1]} 34. Rf7+ {[%clk
0:00:02.6]} 34... Kxf7 {[%clk 0:00:35.5]} 35. Qxh8 {[%clk 0:00:02.9]} 35... Rd1+
{[%clk 0:00:29.3]} 36. Kh2 {[%clk 0:00:02.8]} 36... Qf4+ {[%clk 0:00:28.8]} 37.
Kh3 {[%clk 0:00:03.2]} 37... Rd3+ {[%clk 0:00:29]} 0-1

[Event "Early-Titled-Tuesday-Blitz-November-28-2023"]
[Site "Chess.com"]
[Date "2023.11.28"]
[Round "7"]
[White "tetrix83"]
[Black "Aygehovit1992"]
[Result "0-1"]
[WhiteElo "2533"]
[BlackElo "2720"]
[TimeControl "180+1"]
[EndTime "9:24:56 PST"]
[Termination "Aygehovit1992 won on time"]

1. e4 {[%clk 0:02:53.9]} 1... c5 {[%clk 0:02:59.4]} 2. Nf3 {[%clk 0:02:51.5]}
2... e6 {[%clk 0:03:00]} 3. g3 {[%clk 0:02:49.9]} 3... Nc6 {[%clk 0:02:56.9]} 4.
Bg2 {[%clk 0:02:50]} 4... Nf6 {[%clk 0:02:56.9]} 5. d3 {[%clk 0:02:46.8]} 5...
d6 {[%clk 0:02:55.4]} 6. O-O {[%clk 0:02:44.7]} 6... Be7 {[%clk 0:02:52.7]} 7.
c3 {[%clk 0:02:44.9]} 7... O-O {[%clk 0:02:48.4]} 8. Re1 {[%clk 0:02:45.1]} 8...
Bd7 {[%clk 0:02:44.2]} 9. Nbd2 {[%clk 0:02:30.4]} 9... Rc8 {[%clk 0:02:43.9]}
10. a4 {[%clk 0:02:24.7]} 10... a6 {[%clk 0:02:31.8]} 11. Nc4 {[%clk 0:01:59.6]}
11... b5 {[%clk 0:02:29.8]} 12. axb5 {[%clk 0:01:57.8]} 12... axb5 {[%clk
0:02:30.7]} 13. Ne3 {[%clk 0:01:57.8]} 13... Qc7 {[%clk 0:02:22]} 14. h3 {[%clk
0:01:57.7]} 14... Ra8 {[%clk 0:02:15.7]} 15. Rxa8 {[%clk 0:01:42.1]} 15... Rxa8
{[%clk 0:02:16.6]} 16. g4 {[%clk 0:01:42.5]} 16... b4 {[%clk 0:02:04.9]} 17. c4
{[%clk 0:01:39.4]} 17... Ra2 {[%clk 0:01:52.7]} 18. g5 {[%clk 0:01:37.1]} 18...
Ne8 {[%clk 0:01:44.7]} 19. Ng4 {[%clk 0:01:25]} 19... e5 {[%clk 0:01:22.7]} 20.
Ne3 {[%clk 0:01:22.7]} 20... Qd8 {[%clk 0:01:23.1]} 21. Nd5 {[%clk 0:01:18.8]}
21... Nc7 {[%clk 0:01:22.7]} 22. Nxc7 {[%clk 0:00:38.3]} 22... Qxc7 {[%clk
0:01:22.2]} 23. Nh2 {[%clk 0:00:38.2]} 23... Nd4 {[%clk 0:01:16.4]} 24. Ng4
{[%clk 0:00:35.6]} 24... b3 {[%clk 0:01:11.5]} 25. h4 {[%clk 0:00:24.2]} 25...
Ra1 {[%clk 0:01:09.3]} 26. Ne3 {[%clk 0:00:23.8]} 26... Qa5 {[%clk 0:01:01.3]}
27. Bd2 {[%clk 0:00:19.6]} 27... Rxd1 {[%clk 0:00:58.3]} 28. Bxa5 {[%clk
0:00:19.6]} 28... Rxd3 {[%clk 0:00:50.3]} 29. Nd5 {[%clk 0:00:12.4]} 29... Bf8
{[%clk 0:00:50.8]} 30. Kf1 {[%clk 0:00:10.1]} 30... Bg4 {[%clk 0:00:48.7]} 31.
Ne3 {[%clk 0:00:04.3]} 31... Be6 {[%clk 0:00:38.8]} 32. Rc1 {[%clk 0:00:03.7]}
32... h6 {[%clk 0:00:35.7]} 33. Ke1 {[%clk 0:00:03.1]} 33... hxg5 {[%clk
0:00:24.8]} 34. Bf1 {[%clk 0:00:01.1]} 34... Rxe3+ {[%clk 0:00:24.7]} 35. fxe3
{[%clk 0:00:01.1]} 35... Nf3+ {[%clk 0:00:20.5]} 0-1

[Event "Early-Titled-Tuesday-Blitz-November-28-2023"]
[Site "Chess.com"]
[Date "2023.11.28"]
[Round "7"]
[White "dropstoneDP"]
[Black "Rakhmanov_Aleksandr"]
[Result "1/2-1/2"]
[WhiteElo "2960"]
[BlackElo "2846"]
[TimeControl "180+1"]
[EndTime "9:24:57 PST"]
[Termination "Game drawn by repetition"]

1. e4 {[%clk 0:03:00.9]} 1... c5 {[%clk 0:02:53]} 2. Nf3 {[%clk 0:03:00.8]} 2...
Nf6 {[%clk 0:02:53.5]} 3. e5 {[%clk 0:02:58.7]} 3... Nd5 {[%clk 0:02:54]} 4. d4
{[%clk 0:02:57.9]} 4... cxd4 {[%clk 0:02:54.9]} 5. Qxd4 {[%clk 0:02:58.8]} 5...
e6 {[%clk 0:02:55.1]} 6. a3 {[%clk 0:02:58.3]} 6... Nc6 {[%clk 0:02:55.7]} 7.
Qd1 {[%clk 0:02:57.1]} 7... d6 {[%clk 0:02:54.7]} 8. c4 {[%clk 0:02:55.7]} 8...
Nde7 {[%clk 0:02:39.2]} 9. exd6 {[%clk 0:02:55.1]} 9... Ng6 {[%clk 0:02:39.5]}
10. c5 {[%clk 0:02:51.9]} 10... b6 {[%clk 0:02:36.2]} 11. Bb5 {[%clk 0:02:28.2]}
11... Bd7 {[%clk 0:02:35.1]} 12. Bg5 {[%clk 0:02:14.1]} 12... f6 {[%clk
0:02:27.5]} 13. Be3 {[%clk 0:02:14.3]} 13... bxc5 {[%clk 0:02:27.2]} 14. Bxc5
{[%clk 0:02:13.9]} 14... Rb8 {[%clk 0:02:06.5]} 15. Bxc6 {[%clk 0:01:37.1]}
15... Bxc6 {[%clk 0:02:07.4]} 16. b4 {[%clk 0:01:37.3]} 16... Bxf3 {[%clk
0:01:53]} 17. Qxf3 {[%clk 0:01:27.7]} 17... Bxd6 {[%clk 0:01:52.1]} 18. Qc6+
{[%clk 0:01:27.2]} 18... Ke7 {[%clk 0:01:49.6]} 19. Nc3 {[%clk 0:01:08]} 19...
Ne5 {[%clk 0:01:43.2]} 20. Bxd6+ {[%clk 0:01:07.2]} 20... Qxd6 {[%clk
0:01:44.1]} 21. Qxd6+ {[%clk 0:01:06.9]} 21... Kxd6 {[%clk 0:01:44.2]} 22. Ke2
{[%clk 0:01:01.5]} 22... Rhc8 {[%clk 0:01:43.3]} 23. Rac1 {[%clk 0:00:52.5]}
23... Rc4 {[%clk 0:01:39.3]} 24. Rhd1+ {[%clk 0:00:50.8]} 24... Ke7 {[%clk
0:01:39.3]} 25. Na4 {[%clk 0:00:48.6]} 25... a5 {[%clk 0:01:24.6]} 26. Rxc4
{[%clk 0:00:46.5]} 26... Nxc4 {[%clk 0:01:25.5]} 27. Nc5 {[%clk 0:00:47]} 27...
Nd6 {[%clk 0:01:01]} 28. bxa5 {[%clk 0:00:31.1]} 28... Rb5 {[%clk 0:00:54.3]}
29. Rc1 {[%clk 0:00:31]} 29... Rxa5 {[%clk 0:00:52.8]} 30. a4 {[%clk 0:00:31.5]}
30... f5 {[%clk 0:00:44.3]} 31. f4 {[%clk 0:00:26.9]} 31... h6 {[%clk
0:00:39.3]} 32. Kd3 {[%clk 0:00:25.9]} 32... g5 {[%clk 0:00:38.6]} 33. g3 {[%clk
0:00:25.9]} 33... gxf4 {[%clk 0:00:34.9]} 34. gxf4 {[%clk 0:00:26.8]} 34... Ne4
{[%clk 0:00:34.9]} 35. Nxe4 {[%clk 0:00:22]} 35... fxe4+ {[%clk 0:00:35.8]} 36.
Kxe4 {[%clk 0:00:22.3]} 36... Rxa4+ {[%clk 0:00:35.4]} 37. Kf3 {[%clk
0:00:22.9]} 37... Ra5 {[%clk 0:00:32.4]} 38. Kg4 {[%clk 0:00:20.3]} 38... Kf6
{[%clk 0:00:32.9]} 39. Rc3 {[%clk 0:00:19.7]} 39... Kg6 {[%clk 0:00:31.9]} 40.
Re3 {[%clk 0:00:19.5]} 40... Kf6 {[%clk 0:00:29.7]} 41. Rh3 {[%clk 0:00:19.6]}
41... Kg6 {[%clk 0:00:30.2]} 42. Re3 {[%clk 0:00:20.2]} 42... Kf6 {[%clk
0:00:25.8]} 43. Rh3 {[%clk 0:00:19.9]} 43... Kg6 {[%clk 0:00:26.4]} 44. Re3
{[%clk 0:00:19.9]} 1/2-1/2

[Event "Early-Titled-Tuesday-Blitz-November-28-2023"]
[Site "Chess.com"]
[Date "2023.11.28"]
[Round "7"]
[White "kai_nov"]
[Black "IsaqueGoncalvesSanto"]
[Result "1-0"]
[WhiteElo "2237"]
[BlackElo "1905"]
[TimeControl "180+1"]
[EndTime "9:24:58 PST"]
[Termination "kai_nov won on time"]

1. d4 {[%clk 0:03:00.9]} 1... e6 {[%clk 0:02:56.1]} 2. Nc3 {[%clk 0:02:58.5]}
2... d5 {[%clk 0:02:56.5]} 3. Nf3 {[%clk 0:02:58.3]} 3... Nf6 {[%clk 0:02:54.1]}
4. Bg5 {[%clk 0:02:57.6]} 4... Be7 {[%clk 0:02:53.3]} 5. Bxf6 {[%clk 0:02:54.6]}
5... Bxf6 {[%clk 0:02:52.9]} 6. e4 {[%clk 0:02:54.9]} 6... O-O {[%clk
0:02:30.1]} 7. e5 {[%clk 0:02:53.9]} 7... Be7 {[%clk 0:02:30.2]} 8. Bd3 {[%clk
0:02:53.2]} 8... f5 {[%clk 0:02:28.9]} 9. exf6 {[%clk 0:02:49.4]} 9... Bxf6
{[%clk 0:02:28.9]} 10. Qe2 {[%clk 0:02:46.7]} 10... c5 {[%clk 0:02:27.7]} 11.
dxc5 {[%clk 0:02:41.5]} 11... Qa5 {[%clk 0:02:04.2]} 12. O-O {[%clk 0:02:32.3]}
12... Qxc5 {[%clk 0:02:03.3]} 13. Nd1 {[%clk 0:02:22]} 13... Nc6 {[%clk
0:01:56.8]} 14. c3 {[%clk 0:02:10.5]} 14... Bd7 {[%clk 0:01:53.9]} 15. b4 {[%clk
0:02:05.2]} 15... Qd6 {[%clk 0:01:39.7]} 16. Qc2 {[%clk 0:01:58.4]} 16... Nxb4
{[%clk 0:01:31.8]} 17. Bxh7+ {[%clk 0:01:54.1]} 17... Kh8 {[%clk 0:01:31.1]} 18.
Qg6 {[%clk 0:01:36.2]} 18... Be8 {[%clk 0:01:18]} 19. Qb1 {[%clk 0:01:29.6]}
19... Nc6 {[%clk 0:01:08.2]} 20. Bg6 {[%clk 0:00:59.7]} 20... Bd7 {[%clk
0:00:54.6]} 21. Qd3 {[%clk 0:00:28.8]} 21... Qf4 {[%clk 0:00:30.2]} 22. Ne3
{[%clk 0:00:27.4]} 22... Rac8 {[%clk 0:00:18.8]} 23. Rab1 {[%clk 0:00:25.9]}
23... b6 {[%clk 0:00:18]} 24. Rfc1 {[%clk 0:00:25.2]} 24... Na5 {[%clk
0:00:13.1]} 25. Rb4 {[%clk 0:00:19.7]} 25... Nc4 {[%clk 0:00:10.1]} 26. Rc2
{[%clk 0:00:09.1]} 26... a5 {[%clk 0:00:06.7]} 27. Rb1 {[%clk 0:00:04.9]} 27...
Nxe3 {[%clk 0:00:05.8]} 28. fxe3 {[%clk 0:00:05.2]} 28... Qh6 {[%clk 0:00:04.3]}
29. Rxb6 {[%clk 0:00:04.8]} 1-0

[Event "Early-Titled-Tuesday-Blitz-November-28-2023"]
[Site "Chess.com"]
[Date "2023.11.28"]
[Round "7"]
[White "Gabrielian_Artur"]
[Black "Artem_Sadovsky"]
[Result "1-0"]
[WhiteElo "2721"]
[BlackElo "2518"]
[TimeControl "180+1"]
[EndTime "9:24:59 PST"]
[Termination "Gabrielian_Artur won on time"]

1. e4 {[%clk 0:03:00.9]} 1... g6 {[%clk 0:02:51.2]} 2. d4 {[%clk 0:03:00.6]}
2... Bg7 {[%clk 0:02:51.5]} 3. Nc3 {[%clk 0:03:00.8]} 3... d6 {[%clk 0:02:51.1]}
4. Be3 {[%clk 0:03:00.4]} 4... e5 {[%clk 0:02:51.1]} 5. dxe5 {[%clk 0:02:50.7]}
5... dxe5 {[%clk 0:02:52]} 6. Qxd8+ {[%clk 0:02:50.2]} 6... Kxd8 {[%clk
0:02:52.9]} 7. O-O-O+ {[%clk 0:02:50.1]} 7... Nd7 {[%clk 0:02:53.6]} 8. f4
{[%clk 0:02:49.3]} 8... exf4 {[%clk 0:02:54.5]} 9. Bxf4 {[%clk 0:02:49.3]} 9...
Bh6 {[%clk 0:02:55.1]} 10. g3 {[%clk 0:02:48.1]} 10... c6 {[%clk 0:02:53.6]} 11.
Nf3 {[%clk 0:02:46.7]} 11... Ke7 {[%clk 0:02:53.4]} 12. e5 {[%clk 0:02:40.2]}
12... Bxf4+ {[%clk 0:02:42.9]} 13. gxf4 {[%clk 0:02:40.2]} 13... Nc5 {[%clk
0:02:43.8]} 14. Nd4 {[%clk 0:02:31.3]} 14... a5 {[%clk 0:02:41.7]} 15. Bg2
{[%clk 0:02:29]} 15... Nh6 {[%clk 0:02:39.2]} 16. Rhe1 {[%clk 0:01:16.9]} 16...
Nf5 {[%clk 0:02:38.4]} 17. Nf3 {[%clk 0:01:15]} 17... Be6 {[%clk 0:02:26.6]} 18.
Bh3 {[%clk 0:01:13.2]} 18... Nh4 {[%clk 0:01:55.4]} 19. Nxh4 {[%clk 0:01:06.5]}
19... Bxh3 {[%clk 0:01:55.8]} 20. Re3 {[%clk 0:00:58.7]} 20... Bg4 {[%clk
0:01:50.4]} 21. Rg1 {[%clk 0:00:58.2]} 21... Be6 {[%clk 0:01:42.8]} 22. Nf3
{[%clk 0:00:57.3]} 22... Rad8 {[%clk 0:01:39]} 23. a3 {[%clk 0:00:57.2]} 23...
b5 {[%clk 0:01:24.3]} 24. Ne2 {[%clk 0:00:54.1]} 24... Bd5 {[%clk 0:01:20.4]}
25. Nfd4 {[%clk 0:00:50.9]} 25... Ne6 {[%clk 0:00:45.3]} 26. Rc3 {[%clk
0:00:50.4]} 26... Nxd4 {[%clk 0:00:37.8]} 27. Nxd4 {[%clk 0:00:50.1]} 27... b4
{[%clk 0:00:14.3]} 28. Rc5 {[%clk 0:00:47.8]} 28... bxa3 {[%clk 0:00:10]} 29.
bxa3 {[%clk 0:00:48.7]} 29... Ra8 {[%clk 0:00:08.9]} 30. c4 {[%clk 0:00:46.3]}
30... Be4 {[%clk 0:00:08.2]} 31. Re1 {[%clk 0:00:46.5]} 31... Bg2 {[%clk
0:00:08.2]} 32. Re2 {[%clk 0:00:44.5]} 32... Bh1 {[%clk 0:00:08.7]} 33. Re1
{[%clk 0:00:44.8]} 33... Bg2 {[%clk 0:00:08.7]} 34. Kd2 {[%clk 0:00:44.7]} 34...
Rhb8 {[%clk 0:00:03.7]} 35. Kc3 {[%clk 0:00:44.6]} 35... Ra6 {[%clk 0:00:02.5]}
36. Re2 {[%clk 0:00:37.9]} 36... Bh1 {[%clk 0:00:02.8]} 37. Rb2 {[%clk
0:00:37.9]} 37... Rxb2 {[%clk 0:00:02.1]} 38. Kxb2 {[%clk 0:00:38.1]} 38... a4
{[%clk 0:00:03]} 39. Kc3 {[%clk 0:00:38.2]} 39... Be4 {[%clk 0:00:03.3]} 40. Kb4
{[%clk 0:00:37.6]} 40... f6 {[%clk 0:00:03]} 41. h4 {[%clk 0:00:36.9]} 41...
Rb6+ {[%clk 0:00:02.4]} 42. Kxa4 {[%clk 0:00:36.6]} 1-0